bitfinex/quotes_BTCUSD_20250617
["timestamp","ask_amount","ask_price","bid_price","bid_amount"]
[1750131156740,0.001,107620.0,107610.0,0.76174922]
[1750131157835,0.001,107620.0,107610.0,1.10174922]
[1750131159417,0.001,107620.0,107610.0,0.69036788]
[1750131159663,0.001,107620.0,107610.0,1.10174922]
[1750131159903,0.001,107620.0,107610.0,0.69036788]
[1750131160158,0.01958278,107620.0,107610.0,0.55605855]
[1750131160379,0.03816625,107620.0,107610.0,0.71201855]
[1750131160607,0.03816625,107620.0,107610.0,0.2044417]
[1750131160608,0.21471439,107620.0,107610.0,0.2044417]
[1750131161093,0.2054227,107620.0,107610.0,0.3604017]
[1750131161322,0.2054227,107620.0,107610.0,0.58467722]
[1750131162733,0.2054227,107620.0,107610.0,0.36969417]
[1750131163167,0.21471465,107620.0,107610.0,0.58467722]
[1750131164030,0.21471465,107620.0,107610.0,0.59396951]
[1750131165137,0.01958364,107620.0,107610.0,0.59396899]
[1750131165360,0.0195833,107620.0,107610.0,0.59396899]
[1750131166242,0.21471431,107620.0,107610.0,0.58467678]
[1750131166454,0.0195833,107620.0,107610.0,0.59396899]
[1750131167119,0.24651422,107620.0,107610.0,0.55679964]
[1750131167561,0.21471422,107620.0,107610.0,0.3709434]
[1750131168003,0.2054227,107620.0,107610.0,0.55679973]
[1750131168222,0.2054227,107620.0,107610.0,0.35110906]
[1750131168674,0.19613092,107620.0,107610.0,0.35110906]
[1750131169107,0.20253906,107620.0,107600.0,0.43568477]
[1750131169366,0.20253906,107620.0,107610.0,0.15596]
[1750131169588,0.18683906,107620.0,107610.0,0.15596]
[1750131169802,0.18683906,107620.0,107610.0,0.35110906]
[1750131170292,0.18683906,107620.0,107610.0,0.36040153]
[1750131170527,0.18683906,107620.0,107610.0,0.5660922]
[1750131171210,0.18683906,107620.0,107610.0,0.56609237]
[1750131171428,0.18683906,107620.0,107610.0,0.58467722]
[1750131171640,0.18683906,107620.0,107610.0,0.57538484]
[1750131172396,0.21723906,107620.0,107610.0,0.21373417]
[1750131172615,0.03716969,107610.0,107600.0,0.51582662]
[1750131172834,0.03716969,107610.0,107600.0,0.57554486]
[1750131173049,0.03717038,107610.0,107600.0,0.57554486]
[1750131173480,0.21373442,107610.0,107600.0,0.56625231]
[1750131173700,0.02787809,107610.0,107600.0,0.60814563]
[1750131173972,0.21373442,107610.0,107600.0,0.61014563]
[1750131174173,0.21373442,107610.0,107600.0,0.61114581]
[1750131174601,0.20444187,107610.0,107600.0,0.55995889]
[1750131174813,0.20444187,107610.0,107600.0,0.37408529]
[1750131175026,0.20444187,107610.0,107600.0,0.16839462]
[1750131175666,0.20444187,107610.0,107600.0,0.20760164]
[1750131175889,0.20444187,107610.0,107600.0,0.37285497]
[1750131176105,0.20444187,107610.0,107600.0,0.57854564]
[1750131176332,0.20444187,107610.0,107600.0,0.5878388]
[1750131176550,0.01858554,107610.0,107600.0,0.62923187]
[1750131177207,0.20444187,107610.0,107600.0,0.61064564]
[1750131177421,0.20444187,107610.0,107600.0,0.60135231]
[1750131177909,0.20444187,107610.0,107600.0,0.55995889]
[1750131178125,0.20444187,107610.0,107600.0,0.57854581]
[1750131178859,0.20444187,107610.0,107600.0,0.61953905]
[1750131179076,0.20444187,107610.0,107600.0,0.42314154]
[1750131179290,0.20444187,107610.0,107600.0,0.62883221]
[1750131179753,0.20444187,107610.0,107600.0,0.20009462]
[1750131179971,0.20444187,107610.0,107600.0,0.37408529]
[1750131180849,0.20444187,107610.0,107600.0,0.56925239]
[1750131181280,0.19514914,107610.0,107600.0,0.56925239]
[1750131181772,0.18585633,107610.0,107600.0,0.36479161]
[1750131182002,0.18876046,107610.0,107600.0,0.15910094]
[1750131182235,0.20386046,107610.0,107600.0,0.15910094]
[1750131182470,0.19514914,107610.0,107600.0,0.5599588]
[1750131182694,0.20444169,107610.0,107600.0,0.60095222]
[1750131182912,0.20444169,107610.0,107600.0,0.5916588]
[1750131183592,0.20444169,107610.0,107600.0,0.39649161]
[1750131183819,0.20444169,107610.0,107600.0,0.00314094]
[1750131184073,0.23754169,107610.0,107600.0,0.15910094]
[1750131184301,0.23754169,107610.0,107600.0,0.00314094]
[1750131184523,0.44323236,107610.0,107600.0,0.00314094]
[1750131184750,0.23754169,107610.0,107600.0,0.00314094]
[1750131184971,0.23754169,107610.0,107600.0,0.15910094]
[1750131185188,0.23754169,107610.0,107600.0,0.00314094]
[1750131185467,0.23754169,107610.0,107600.0,0.00114094]
[1750131186142,0.23754169,107610.0,107600.0,0.00014094]
[1750131186365,0.24780267,107610.0,107600.0,0.00014094]
[1750131189082,0.8897351,107610.0,107600.0,0.00014094]
[1750131191467,0.65094443,107610.0,107600.0,0.00014094]
[1750131191721,0.69274443,107610.0,107600.0,0.00014094]
[1750131192345,0.9300351,107610.0,107600.0,0.00014094]
[1750131192563,1.15026662,107610.0,107600.0,0.00014094]
[1750131192812,1.26867061,107610.0,107600.0,0.00014094]
[1750131193318,1.29630112,107610.0,107600.0,0.00014094]
[1750131193538,1.26867061,107610.0,107600.0,0.00014094]
[1750131193761,1.26767061,107610.0,107600.0,0.00014094]
[1750131193986,1.46999061,107610.0,107600.0,0.00014094]
[1750131194217,1.67097056,107610.0,107600.0,0.00014094]
[1750131194886,1.66597056,107610.0,107600.0,0.00014094]
[1750131195098,1.66697056,107610.0,107600.0,0.00014094]
[1750131195316,1.64958112,107610.0,107600.0,0.00014094]
[1750131195525,1.64858112,107610.0,107600.0,0.00014094]
[1750131195735,1.67649213,107610.0,107600.0,0.00014094]
[1750131195944,1.68049213,107610.0,107600.0,0.00014094]
[1750131196370,1.68649213,107610.0,107600.0,0.00114094]
[1750131196581,1.65886162,107610.0,107600.0,0.00014094]
[1750131196797,1.66486162,107610.0,107600.0,0.00114094]
[1750131197215,1.25348028,107610.0,107600.0,0.00114094]
[1750131197440,1.66486162,107610.0,107600.0,0.00114094]
[1750131198529,0.95957106,107610.0,107600.0,0.00114094]
[1750131198760,0.7207992,107610.0,107600.0,0.00114094]
[1750131198961,0.88120443,107610.0,107600.0,0.00114094]
[1750131199173,1.0868951,107610.0,107600.0,0.00114094]
[1750131199427,1.10143595,107610.0,107600.0,0.00114094]
[1750131199661,1.11803595,107610.0,107600.0,0.00114094]
[1750131201033,1.21418517,107610.0,107600.0,0.00114094]
[1750131202325,1.41987584,107610.0,107600.0,0.00114094]
[1750131202545,1.0084945,107610.0,107600.0,0.00114094]
[1750131202758,1.41987584,107610.0,107600.0,0.00114094]
[1750131203603,1.11803595,107610.0,107600.0,0.00114094]
[1750131204027,0.91234528,107610.0,107600.0,0.00114094]
[1750131204245,1.08393595,107610.0,107600.0,0.00114094]
[1750131204505,0.88617595,107610.0,107600.0,0.00114094]
[1750131204724,1.08393595,107610.0,107600.0,0.00114094]
[1750131205143,1.11653595,107610.0,107600.0,0.00114094]
[1750131206242,1.32222662,107610.0,107600.0,0.00114094]
[1750131208202,1.11653595,107610.0,107600.0,0.00114094]
[1750131208469,1.32222662,107610.0,107600.0,0.00114094]
[1750131208684,1.34445393,107610.0,107600.0,0.00114094]
[1750131209103,1.44060315,107610.0,107600.0,0.00114094]
[1750131209976,1.44060315,107610.0,107600.0,0.0068437]
[1750131210634,0.93307259,107610.0,107600.0,0.0068437]
[1750131210854,0.90840326,107610.0,107600.0,0.0068437]
[1750131211082,1.10616326,107610.0,107600.0,0.0068437]
[1750131211307,1.12186326,107610.0,107600.0,0.0068437]
[1750131211751,1.13766326,107610.0,107600.0,0.0068437]
[1750131213280,1.2123434,107610.0,107600.0,0.0068437]
[1750131213489,1.13766326,107610.0,107600.0,0.0068437]
[1750131214151,1.12186326,107610.0,107600.0,0.0068437]
[1750131214361,1.13408126,107610.0,107600.0,0.0068437]
[1750131214579,0.93632126,107610.0,107600.0,0.0068437]
[1750131214829,1.13408126,107610.0,107600.0,0.0068437]
[1750131221628,1.16171177,107610.0,107600.0,0.0068437]
[1750131221859,0.96395177,107610.0,107600.0,0.0375437]
[1750131222078,1.16167177,107610.0,107600.0,0.0375437]
[1750131222550,1.13404126,107610.0,107600.0,0.0375437]
[1750131222754,1.16167177,107610.0,107600.0,0.0375437]
[1750131224080,0.96395177,107610.0,107600.0,0.0375437]
[1750131224305,0.71608974,107610.0,107600.0,0.0375437]
[1750131224748,0.91380974,107610.0,107600.0,0.0375437]
[1750131225459,0.89158243,107610.0,107600.0,0.0375437]
[1750131226139,0.91387067,107610.0,107600.0,0.0375437]
[1750131226362,1.11956134,107610.0,107600.0,0.0375437]
[1750131227260,0.91387067,107610.0,107600.0,0.0375437]
[1750131227493,0.89158243,107610.0,107600.0,0.0375437]
[1750131231220,1.0972731,107610.0,107600.0,0.0375437]
[1750131231423,1.11956019,107610.0,107600.0,0.0068437]
[1750131231672,0.71614952,107610.0,107600.0,0.0388437]
[1750131231895,0.88228145,107610.0,107600.0,0.0388437]
[1750131232831,0.90456745,107610.0,107600.0,0.0388437]
[1750131234723,0.88228145,107610.0,107600.0,0.0388437]
[1750131235978,0.89138605,107610.0,107600.0,0.0388437]
[1750131237693,0.88228145,107610.0,107600.0,0.0388437]
[1750131239524,0.88224145,107610.0,107600.0,0.0388437]
[1750131239734,0.72636145,107610.0,107600.0,0.0388437]
[1750131239941,0.88224145,107610.0,107600.0,0.0388437]
[1750131240386,0.58835969,107610.0,107600.0,0.43040797]
[1750131240599,0.41808169,107610.0,107600.0,0.24453437]
[1750131241220,0.41808169,107610.0,107600.0,0.0388437]
[1750131241456,0.41408169,107610.0,107600.0,0.0388437]
[1750131241671,0.40208169,107610.0,107600.0,0.0378437]
[1750131241889,0.40608169,107610.0,107600.0,0.0378437]
[1750131242097,0.41008169,107610.0,107600.0,0.0378437]
[1750131242539,0.20844169,107610.0,107600.0,0.25487493]
[1750131242768,0.03387731,107610.0,107600.0,0.46658147]
[1750131242990,0.02458432,107610.0,107600.0,0.46658147]
[1750131243229,0.03387679,107610.0,107600.0,0.48658147]
[1750131243441,0.03387671,107610.0,107600.0,0.48658147]
[1750131243647,0.03387671,107610.0,107600.0,0.5177391]
[1750131243857,0.03387653,107610.0,107600.0,0.48658147]
[1750131244074,0.004,107610.0,107600.0,0.48658147]
[1750131244287,0.004,107610.0,107600.0,0.58282323]
[1750131244507,0.005,107610.0,107600.0,0.58282323]
[1750131244731,0.001,107610.0,107600.0,0.58282323]
[1750131244942,0.004,107610.0,107600.0,0.58282323]
[1750131245187,0.003,107610.0,107600.0,0.58282323]
[1750131245607,0.004,107610.0,107600.0,0.58282323]
[1750131248166,0.004,107610.0,107600.0,0.58282323]
[1750131248386,0.21773338,107610.0,107600.0,0.54423683]
[1750131248603,0.04116969,107610.0,107600.0,0.62242164]
[1750131248814,0.0225845,107610.0,107600.0,0.62242164]
[1750131249061,0.03187705,107610.0,107600.0,0.62242164]
[1750131249911,0.04116969,107610.0,107600.0,0.46658164]
[1750131250745,0.03187705,107610.0,107600.0,0.46658164]
[1750131251192,0.03187697,107610.0,107600.0,0.46658164]
[1750131251701,0.0225845,107610.0,107600.0,0.46658164]
[1750131251916,0.004,107610.0,107600.0,0.46658164]
[1750131252121,0.01329203,107610.0,107600.0,0.5628234]
[1750131252325,0.004,107610.0,107600.0,0.5628234]
[1750131253043,0.004,107610.0,107600.0,0.59398103]
[1750131253255,0.004,107610.0,107600.0,0.5628234]
[1750131257245,0.01329203,107610.0,107600.0,0.5628234]
[1750131257444,0.004,107610.0,107600.0,0.5628234]
[1750131257650,0.01329203,107610.0,107600.0,0.5628234]
[1750131258315,0.004,107610.0,107600.0,0.5628234]
[1750131258545,0.004,107610.0,107600.0,0.76851407]
[1750131259392,0.004,107610.0,107600.0,0.35713273]
[1750131259606,0.01329203,107610.0,107600.0,0.5628234]
[1750131260023,0.004,107610.0,107600.0,0.5628234]
[1750131260482,0.004,107610.0,107600.0,0.5648234]
[1750131260667,0.04645759,107620.0,107610.0,0.21373374]
[1750131260874,0.03716581,107620.0,107610.0,0.60572441]
[1750131261310,0.04645837,107620.0,107610.0,0.60572441]
[1750131261530,0.03716694,107620.0,107610.0,0.5964322]
[1750131261805,0.223006,107620.0,107610.0,0.40003391]
[1750131262035,0.224006,107620.0,107610.0,0.60572458]
[1750131262243,0.224006,107620.0,107610.0,0.61501687]
[1750131262470,0.224006,107620.0,107610.0,0.5964322]
[1750131262675,0.224006,107620.0,107610.0,0.60572458]
[1750131262879,0.03816694,107620.0,107610.0,0.61001687]
[1750131263322,0.224006,107620.0,107610.0,0.61001687]
[1750131263540,0.21471448,107620.0,107610.0,0.40003417]
[1750131263982,0.0288749,107620.0,107610.0,0.61501705]
[1750131264418,0.03816685,107620.0,107610.0,0.61501705]
[1750131264636,0.0288749,107620.0,107610.0,0.61501705]
[1750131265132,0.03816676,107620.0,107610.0,0.61501705]
[1750131265899,0.21471439,107620.0,107610.0,0.60572484]
[1750131266529,0.2054227,107620.0,107610.0,0.58713973]
[1750131266740,0.2054227,107620.0,107610.0,0.40128348]
[1750131266950,0.19514906,107610.0,107600.0,0.0380437]
[1750131267366,0.19514906,107610.0,107600.0,0.1938037]
[1750131268224,0.19514906,107610.0,107600.0,0.25302805]
[1750131268436,0.19514906,107610.0,107600.0,0.41908164]
[1750131269052,0.19514906,107610.0,107600.0,0.61624874]
[1750131270258,0.19514906,107610.0,107600.0,0.60695524]
[1750131270464,0.00929247,107610.0,107600.0,0.62554216]
[1750131270688,0.00929203,107610.0,107600.0,0.60044735]
[1750131270902,0.0185845,107610.0,107600.0,0.61444735]
[1750131271121,0.02787714,107610.0,107600.0,0.61444735]
[1750131271336,0.02787671,107610.0,107600.0,0.61444735]
[1750131271767,0.03716935,107610.0,107600.0,0.61444735]
[1750131272153,0.22302638,107610.0,107600.0,0.60515489]
[1750131272361,0.22302638,107610.0,107600.0,0.61444813]
[1750131272792,0.21373417,107610.0,107600.0,0.60515489]
[1750131273777,0.21373417,107610.0,107600.0,0.61444813]
[1750131273984,0.01858468,107610.0,107600.0,0.63303436]
[1750131274201,0.00929221,107610.0,107600.0,0.63303436]
[1750131274412,0.01858459,107610.0,107600.0,0.63303436]
[1750131274907,0.02787714,107610.0,107600.0,0.63303436]
[1750131275111,0.03716978,107610.0,107600.0,0.63303436]
[1750131275329,0.04646251,107610.0,107600.0,0.63303436]
[1750131275773,0.04646251,107610.0,107600.0,0.60515498]
[1750131275774,0.22302663,107610.0,107600.0,0.60515498]
[1750131275978,0.22302663,107610.0,107600.0,0.61444831]
[1750131276192,0.21373425,107610.0,107600.0,0.60515498]
[1750131277062,0.21373425,107610.0,107600.0,0.61444831]
[1750131277268,0.22302706,107610.0,107600.0,0.63303471]
[1750131278348,0.22302706,107610.0,107600.0,0.62374155]
[1750131278555,0.22302706,107610.0,107600.0,0.63303471]
[1750131279183,0.21373451,107610.0,107600.0,0.46798155]
[1750131279392,0.21373451,107610.0,107600.0,0.62370155]
[1750131280367,0.20444187,107610.0,107600.0,0.45868831]
[1750131280576,0.19514914,107610.0,107600.0,0.59582156]
[1750131281271,0.18585633,107610.0,107600.0,0.40065437]
[1750131282537,0.18585633,107610.0,107600.0,0.59582165]
[1750131282746,0.18585633,107610.0,107600.0,0.39942457]
[1750131283395,0.18585633,107610.0,107600.0,0.60511524]
[1750131283636,0.18585633,107610.0,107600.0,0.61440866]
[1750131284059,0.18585633,107610.0,107600.0,0.60511524]
[1750131284277,0.18585633,107610.0,107600.0,0.39942457]
[1750131284522,0.18585633,107610.0,107600.0,0.40994805]
[1750131284749,0.18585633,107610.0,107600.0,0.38545437]
[1750131284995,0.18876063,107610.0,107600.0,0.0088437]
[1750131285213,0.20486063,107610.0,107600.0,0.0088437]
[1750131285422,0.20195633,107610.0,107600.0,0.0088437]
[1750131285864,0.21745633,107610.0,107600.0,0.0088437]
[1750131286361,1.08554335,107610.0,107600.0,0.0088437]
[1750131286634,1.02464474,107610.0,107600.0,0.0088437]
[1750131287105,1.03918559,107610.0,107600.0,0.0088437]
[1750131287345,1.03918559,107610.0,107600.0,0.0078437]
[1750131287573,1.04018559,107610.0,107600.0,0.0058437]
[1750131289310,0.87613492,107610.0,107600.0,0.0058437]
[1750131290195,1.08182559,107610.0,107600.0,0.0058437]
[1750131290883,0.87613492,107610.0,107600.0,0.0058437]
[1750131292247,1.08182559,107610.0,107600.0,0.0058437]
[1750131294958,0.87613492,107610.0,107600.0,0.0058437]
[1750131295169,1.08182559,107610.0,107600.0,0.0058437]
[1750131295614,0.86063492,107610.0,107600.0,0.0058437]
[1750131296529,0.63263407,107610.0,107600.0,0.24213437]
[1750131296757,0.52685633,107610.0,107600.0,0.24213437]
[1750131297201,0.52685633,107610.0,107600.0,0.0364437]
[1750131297415,0.52685633,107610.0,107600.0,0.03621385]
[1750131297862,0.52685633,107610.0,107600.0,0.2511982]
[1750131298309,0.52685633,107610.0,107600.0,0.44636539]
[1750131298546,0.21473434,107610.0,107600.0,0.46495196]
[1750131298762,0.21473434,107610.0,107600.0,0.47424512]
[1750131301650,0.01958468,107610.0,107600.0,0.47424451]
[1750131301889,0.01029212,107610.0,107600.0,0.49424451]
[1750131302090,0.02887696,107610.0,107600.0,0.49424451]
[1750131302312,0.01958441,107610.0,107600.0,0.49424451]
[1750131302745,0.02887688,107610.0,107600.0,0.49424451]
[1750131303171,0.01958441,107610.0,107600.0,0.49424451]
[1750131303411,0.02887688,107610.0,107600.0,0.49424451]
[1750131303866,0.001,107610.0,107600.0,0.79617694]
[1750131304307,0.001,107610.0,107600.0,0.59048627]
[1750131304971,0.01029221,107610.0,107600.0,0.59048627]
[1750131305427,0.0185845,107610.0,107600.0,0.59048627]
[1750131305694,0.02787697,107610.0,107600.0,0.74716627]
[1750131305909,0.03716961,107610.0,107600.0,0.74916627]
[1750131306149,0.0185845,107610.0,107600.0,0.74916627]
[1750131306625,0.02787697,107610.0,107600.0,0.74916627]
[1750131306847,0.0185845,107610.0,107600.0,0.74916627]
[1750131307513,0.02787697,107610.0,107600.0,0.74916627]
[1750131307693,0.0185845,107610.0,107600.0,0.74916627]
[1750131308112,0.21373382,107610.0,107600.0,0.4400718]
[1750131308338,0.21373382,107610.0,107600.0,0.39935463]
[1750131308549,0.21373382,107610.0,107600.0,0.6050453]
[1750131308760,0.21373382,107610.0,107600.0,0.61433872]
[1750131308971,0.21373382,107610.0,107600.0,0.62363205]
[1750131309190,0.21373382,107610.0,107600.0,0.63292529]
[1750131309401,0.02787749,107610.0,107600.0,0.63292468]
[1750131309613,0.22302663,107610.0,107600.0,0.61433837]
[1750131310322,0.21373434,107610.0,107600.0,0.61433837]
[1750131310776,0.20444187,107610.0,107600.0,0.61433837]
[1750131311211,0.18585633,107610.0,107600.0,0.03921385]
[1750131311475,0.18876048,107610.0,107600.0,0.00861385]
[1750131312595,0.18876048,107610.0,107600.0,0.00761385]
[1750131312850,0.18976048,107610.0,107600.0,0.00561385]
[1750131313922,0.18976048,107610.0,107600.0,0.03731385]
[1750131314159,0.01029212,107610.0,107600.0,0.53098683]
[1750131314372,0.02887679,107610.0,107600.0,0.53098683]
[1750131314596,0.0474619,107610.0,107600.0,0.53098683]
[1750131314806,0.04746251,107610.0,107600.0,0.53098683]
[1750131315240,0.04746303,107610.0,107600.0,0.53098683]
[1750131315443,0.22402698,107610.0,107600.0,0.24177437]
[1750131315657,0.21473451,107610.0,107600.0,0.44746504]
[1750131316746,0.21473451,107610.0,107600.0,0.45675828]
[1750131317619,0.20544187,107610.0,107600.0,0.44746504]
[1750131319116,0.20544187,107610.0,107600.0,0.44746521]
[1750131319323,0.20544187,107610.0,107600.0,0.45675854]
[1750131319543,0.01958554,107610.0,107600.0,0.46605178]
[1750131319775,0.01958554,107610.0,107600.0,0.45675854]
[1750131320245,0.01958554,107610.0,107600.0,0.46605178]
[1750131321766,0.20544187,107610.0,107600.0,0.44746521]
[1750131322208,0.20544187,107610.0,107600.0,0.45675863]
[1750131322424,0.19614914,107610.0,107600.0,0.4079382]
[1750131322658,0.18685633,107610.0,107600.0,0.03731385]
[1750131322844,0.18976049,107610.0,107600.0,0.16125385]
[1750131324862,0.18976049,107610.0,107600.0,0.00561385]
[1750131327285,0.18976049,107610.0,107600.0,0.02131385]
[1750131329949,0.18976049,107610.0,107600.0,0.00561385]
[1750131330173,0.62600225,107610.0,107600.0,0.00561385]
[1750131330416,0.62309809,107610.0,107600.0,0.00561385]
[1750131331888,0.66469809,107610.0,107600.0,0.00561385]
[1750131332149,0.62309809,107610.0,107600.0,0.03851385]
[1750131332365,0.52685633,107610.0,107600.0,0.24420452]
[1750131333027,0.52685633,107610.0,107600.0,0.03851385]
[1750131335013,0.52685633,107610.0,107600.0,0.02211385]
[1750131335435,0.85938876,107610.0,107600.0,0.00561385]
[1750131336283,0.65369809,107610.0,107600.0,0.00561385]
[1750131336713,0.74984731,107610.0,107600.0,0.00561385]
[1750131337172,0.65369809,107610.0,107600.0,0.00561385]
[1750131337391,0.63819809,107610.0,107600.0,0.00561385]
[1750131338040,0.86028876,107610.0,107600.0,0.00561385]
[1750131341173,0.62309809,107610.0,107600.0,0.00561385]
[1750131341398,0.21473374,107610.0,107600.0,0.44626522]
[1750131341612,0.001,107610.0,107600.0,0.46485162]
[1750131341865,0.001,107610.0,107600.0,0.47414469]
[1750131342071,0.02887714,107610.0,107600.0,0.47414469]
[1750131342277,0.01029221,107610.0,107600.0,0.47414469]
[1750131342485,0.01958459,107610.0,107600.0,0.47414469]
[1750131342710,0.02887714,107610.0,107600.0,0.47614469]
[1750131343125,0.03816978,107610.0,107600.0,0.47614469]
[1750131343542,0.03716978,107610.0,107600.0,0.47614469]
[1750131343737,0.01858459,107610.0,107600.0,0.47614469]
[1750131343964,0.02787723,107610.0,107600.0,0.27145402]
[1750131344170,0.02787714,107610.0,107600.0,0.47714469]
[1750131344729,0.03716978,107610.0,107600.0,0.47714469]
[1750131344939,0.04646251,107610.0,107600.0,0.47714469]
[1750131345179,0.22302663,107610.0,107600.0,0.45855855]
[1750131346010,0.21373425,107610.0,107600.0,0.45855855]
[1750131346586,0.21373425,107610.0,107600.0,0.4399718]
[1750131346804,0.2044417,107610.0,107600.0,0.4492653]
[1750131347021,0.18585633,107610.0,107600.0,0.03911385]
[1750131347233,0.18876039,107610.0,107600.0,0.24480452]
[1750131347454,0.18876039,107610.0,107600.0,0.19471385]
[1750131348740,0.18876039,107610.0,107600.0,0.03911385]
[1750131348862,0.18876039,107610.0,107600.0,0.25409811]
[1750131349525,0.18876039,107610.0,107600.0,0.24480452]
[1750131355728,0.18876039,107610.0,107600.0,0.2540982]
[1750131355939,0.19514914,107610.0,107600.0,0.45855863]
[1750131356369,0.01858467,107610.0,107600.0,0.43735117]
[1750131356593,0.00929178,107620.0,107610.0,0.21373374]
[1750131356807,0.01858269,107620.0,107610.0,0.78067447]
[1750131357137,0.01858269,107620.0,107610.0,0.84235589]
[1750131357353,0.20440422,107630.0,107620.0,0.20442236]
[1750131357567,0.21369496,107630.0,107620.0,0.43302151]
[1750131358012,0.21369496,107630.0,107620.0,0.4423132]
[1750131358245,0.21369496,107630.0,107620.0,0.4516048]
[1750131358453,0.21669496,107630.0,107620.0,0.4516048]
[1750131358675,0.21669461,107630.0,107620.0,0.46089632]
[1750131358888,0.03087282,107630.0,107620.0,0.46089632]
[1750131359603,0.03187282,107630.0,107620.0,0.4516048]
[1750131359970,0.21769461,107630.0,107620.0,0.4516048]
[1750131360190,0.19911287,107630.0,107620.0,0.42372973]
[1750131360425,0.18982179,107630.0,107620.0,0.42372973]
[1750131360639,0.18982179,107630.0,107620.0,0.43302168]
[1750131360907,0.19272539,107630.0,107620.0,0.23789067]
[1750131361114,0.19272539,107630.0,107620.0,0.0322]
[1750131362020,0.18982179,107630.0,107620.0,0.22733092]
[1750131362230,0.18982179,107630.0,107620.0,0.43302159]
[1750131362450,0.19272539,107630.0,107620.0,0.23789067]
[1750131363548,0.19272539,107630.0,107620.0,0.0322]
[1750131366062,0.18982179,107630.0,107620.0,0.23789067]
[1750131366292,0.18982179,107630.0,107620.0,0.43302168]
[1750131366509,0.19272539,107630.0,107620.0,0.23789067]
[1750131366727,0.19272539,107630.0,107620.0,0.0322]
[1750131370105,0.19272539,107630.0,107620.0,0.23789067]
[1750131371019,0.18982179,107630.0,107620.0,0.23789067]
[1750131371242,0.19272539,107630.0,107620.0,0.23789067]
[1750131372200,0.19272539,107630.0,107620.0,0.0322]
[1750131376946,0.18982179,107630.0,107620.0,0.23789067]
[1750131377174,0.18982179,107630.0,107620.0,0.43302168]
[1750131377418,0.18982179,107630.0,107620.0,0.23789067]
[1750131379216,0.18982179,107630.0,107620.0,0.24718262]
[1750131379445,0.18982179,107630.0,107620.0,0.43302168]
[1750131379660,0.21769461,107630.0,107620.0,0.44231346]
[1750131379879,0.21769461,107630.0,107620.0,0.43302168]
[1750131380067,0.21769461,107630.0,107620.0,0.24718262]
[1750131380644,0.20840387,107630.0,107620.0,0.23789067]
[1750131380826,0.20840387,107630.0,107620.0,0.0322]
[1750131382260,0.20840387,107630.0,107620.0,0.23789067]
[1750131383102,0.20840387,107630.0,107620.0,0.0322]
[1750131383941,0.20840387,107630.0,107620.0,0.23789067]
[1750131384881,0.20840387,107630.0,107620.0,0.0322]
[1750131389819,0.20840387,107630.0,107620.0,0.43302168]
[1750131390067,0.01329074,107630.0,107620.0,0.46089648]
[1750131390331,0.004,107630.0,107620.0,0.55713824]
[1750131391001,0.01857923,107640.0,107630.0,0.26479401]
[1750131391230,0.00928953,107640.0,107630.0,0.62596468]
[1750131391456,0.01857846,107650.0,107640.0,0.24477441]
[1750131391674,0.01857846,107650.0,107640.0,0.66544537]
[1750131392133,0.00928901,107650.0,107640.0,0.67473481]
[1750131392360,0.0379,107680.0,107670.0,0.41896187]
[1750131392584,0.0107029,107710.0,107700.0,0.0278541]
[1750131392814,0.0107029,107710.0,107700.0,0.22159164]
[1750131392815,0.002,107710.0,107700.0,0.22159164]
[1750131393046,0.02061447,107710.0,107700.0,0.58924383]
[1750131393280,0.00204723,107710.0,107700.0,0.27769906]
[1750131393501,0.02061431,107710.0,107700.0,0.43313906]
[1750131393732,0.02989824,107710.0,107700.0,0.24412992]
[1750131393973,0.21558279,107710.0,107700.0,0.04914394]
[1750131394200,0.75198979,107710.0,107700.0,0.00643251]
[1750131394428,1.13538645,107710.0,107700.0,0.00643251]
[1750131394645,1.13538645,107710.0,107700.0,0.00743251]
[1750131394646,1.15038645,107710.0,107700.0,0.00743251]
[1750131394887,1.0896924,107710.0,107700.0,0.00743251]
[1750131395334,1.0896924,107710.0,107700.0,0.001]
[1750131395553,0.53498589,107700.0,107690.0,0.22648391]
[1750131395788,0.83691832,107700.0,107690.0,0.22648391]
[1750131396904,0.63122765,107700.0,107690.0,0.22648391]
[1750131397550,0.63522765,107700.0,107690.0,0.22648391]
[1750131398916,0.6497685,107700.0,107690.0,0.22648391]
[1750131399130,1.01846755,107700.0,107690.0,0.22648391]
[1750131399352,0.92231833,107700.0,107690.0,0.22648391]
[1750131404835,0.93891833,107700.0,107690.0,0.22648391]
[1750131405271,0.03714898,107670.0,107660.0,0.33758849]
[1750131405511,0.02786212,107670.0,107660.0,0.35470003]
[1750131405729,0.02786212,107670.0,107660.0,0.10674026]
[1750131405730,0.19504039,107670.0,107660.0,0.10674026]
[1750131405959,0.19504039,107670.0,107660.0,0.09134026]
[1750131406170,0.19504039,107670.0,107660.0,0.07422872]
[1750131406601,0.19508759,107670.0,107660.0,0.07722872]
[1750131407257,0.19508759,107670.0,107660.0,0.07422872]
[1750131407482,0.19508759,107670.0,107660.0,0.07522872]
[1750131407682,0.19508759,107670.0,107660.0,0.07622872]
[1750131408777,0.20431455,107670.0,107660.0,0.07622872]
[1750131408988,0.54431455,107670.0,107660.0,0.07622872]
[1750131409671,0.67029716,107670.0,107660.0,0.002]
[1750131409878,1.02269621,107670.0,107660.0,0.002]
[1750131410113,1.17809621,107670.0,107660.0,0.001]
[1750131410323,1.19389621,107670.0,107660.0,0.001]
[1750131410537,1.19489621,107670.0,107660.0,0.001]
[1750131410980,1.19489621,107670.0,107640.0,0.07522872]
[1750131410981,0.01857812,107650.0,107640.0,0.07522872]
[1750131411198,0.01857742,107650.0,107640.0,0.59455896]
[1750131411417,0.02786626,107650.0,107640.0,0.59455896]
[1750131411863,0.55364976,107660.0,107650.0,0.24565457]
[1750131412139,0.59512976,107660.0,107650.0,0.24418287]
[1750131412374,0.58584161,107660.0,107650.0,0.24418287]
[1750131412599,0.58584161,107660.0,107650.0,0.25347214]
[1750131412816,0.58584161,107660.0,107650.0,0.27205025]
[1750131413247,0.54436161,107660.0,107650.0,0.27205025]
[1750131413493,0.58584161,107660.0,107650.0,0.25347214]
[1750131413715,0.5775532,107660.0,107650.0,0.07106352]
[1750131413928,0.5682647,107660.0,107650.0,0.04910624]
[1750131414137,0.5702647,107660.0,107650.0,0.04910624]
[1750131414754,0.5287847,107660.0,107650.0,0.04910624]
[1750131415003,0.18877001,107660.0,107650.0,0.25347179]
[1750131415239,0.20734614,107660.0,107650.0,0.46075607]
[1750131415465,0.19805833,107660.0,107650.0,0.04910624]
[1750131415907,0.19705833,107660.0,107650.0,0.04910624]
[1750131416133,0.19505833,107660.0,107650.0,0.04910624]
[1750131416787,0.19505833,107660.0,107650.0,0.05840933]
[1750131417007,0.00928806,107660.0,107650.0,0.53063561]
[1750131417231,0.02786419,107660.0,107650.0,0.52831346]
[1750131417653,0.03715269,107660.0,107650.0,0.52831346]
[1750131417880,0.22292313,107660.0,107650.0,0.26277488]
[1750131418101,0.22292313,107660.0,107650.0,0.28135265]
[1750131418327,0.03715312,107660.0,107650.0,0.28135969]
[1750131418570,0.22292313,107660.0,107650.0,0.27207094]